fUSD/lending_fUSD_20250602
["ID","MTS","AMOUNT","RATE_DAILY","PERIOD"]
[363785732,1748871041879,-760.3,0.00019178,2]
[363785734,1748871041888,-667.760587,0.00019178,2]
[363785736,1748871041898,-420.0,0.00019178,2]
[363785737,1748871041907,-420.0,0.00019178,2]
[363785738,1748871041917,-1014.51,0.00019178,2]
[363785739,1748871041927,-420.0,0.00019178,2]
[363785740,1748871041936,-505.66,0.00019178,2]
[363785741,1748871041946,-420.0,0.00019178,2]
[363785742,1748871041957,-431.17,0.00019178,2]
[363785743,1748871041966,-1132.83,0.00019178,2]
[363785744,1748871041976,-420.0,0.00019178,2]
[363785745,1748871041986,-420.0,0.00019178,2]
[363785747,1748871041995,-420.0,0.00019178,2]
[363785748,1748871042005,-420.0,0.00019178,2]
[363785750,1748871042015,-771.4,0.00019178,2]
[363785752,1748871042024,-1050.61,0.00019178,2]
[363785754,1748871042033,-420.0,0.00019178,2]
[363785756,1748871042043,-420.0,0.00019178,2]
[363785758,1748871042052,-198.331608,0.00019178,2]
[363785760,1748871042061,-420.0,0.00019178,2]
[363785762,1748871042072,-420.0,0.00019178,2]
[363785764,1748871042081,-10970.24,0.00019178,2]
[363785766,1748871042091,-420.0,0.00019178,2]
[363785768,1748871042101,-420.0,0.00019178,2]
[363785770,1748871042110,-528.6,0.00019178,2]
[363785772,1748871042120,-420.0,0.00019178,2]
[363785774,1748871042129,-681.45,0.00019178,2]
[363785776,1748871042139,-909.66,0.00019178,2]
[363785778,1748871042148,-420.0,0.00019178,2]
[363785779,1748871042158,-420.0,0.00019178,2]
[363785782,1748871042168,-3031.74,0.00019178,2]
[363785784,1748871042178,-1032.47,0.00019178,2]
[363785786,1748871042188,-420.0,0.00019178,2]
[363785787,1748871042197,-219.84546366,0.00019178,2]
[363785789,1748871042207,-420.0,0.00019178,2]
[363785791,1748871042217,-420.0,0.00019178,2]
[363785793,1748871042230,-2338.18,0.00019178,2]
[363785795,1748871042240,-492.47,0.00019178,2]
[363785797,1748871042253,-684.75,0.00019178,2]
[363785799,1748871042263,-3213.82,0.00019178,2]
[363785802,1748871042273,-420.0,0.00019178,2]
[363785803,1748871042283,-420.0,0.00019178,2]
[363785806,1748871042293,-420.0,0.00019178,2]
[363785807,1748871042303,-420.0,0.00019178,2]
[363785808,1748871042312,-420.0,0.00019178,2]
[363785810,1748871042322,-305.43,0.00019305,2]
[363785812,1748871042332,-187.69,0.00019314,2]
[363785814,1748871042341,-500.0,0.00019314,2]
[363785816,1748871042351,-1559.149076,0.00019315,2]
[363785818,1748871042360,-1454.819087,0.00019315,2]
[363785820,1748871042370,-667.760587,0.00019315,2]
[363785822,1748871042379,-420.0,0.00019315,2]
[363785824,1748871042389,-475.72,0.00019315,2]
[363785826,1748871042399,-420.0,0.00019315,2]
[363785828,1748871042409,-420.0,0.00019315,2]
[363785829,1748871042419,-381.36,0.00019315,2]
[363785831,1748871042428,-470.02,0.00019315,2]
[363785833,1748871042438,-713.464001,0.00019315,2]
[363785835,1748871042447,-455.30992175,0.00019315,2]
[363785837,1748871042457,-420.0,0.00019315,2]
[363785839,1748871042466,-420.0,0.00019315,2]
[363785841,1748871042480,-420.0,0.00019315,2]
[363785843,1748871042490,-420.0,0.00019315,2]
[363785845,1748871042499,-420.0,0.00019315,2]
[363785847,1748871042509,-420.0,0.00019315,2]
[363785849,1748871042518,-420.0,0.00019315,2]
[363785851,1748871042528,-420.0,0.00019315,2]
[363785853,1748871042537,-420.0,0.00019315,2]
[363785855,1748871042547,-452.66152688,0.00019315,2]
[363785857,1748871042558,-420.0,0.00019315,2]
[363785859,1748871042568,-420.0,0.00019315,2]
[363785860,1748871042578,-420.0,0.00019315,2]
[363785862,1748871042589,-420.0,0.00019315,2]
[363785864,1748871042599,-256.16,0.00019315,2]
[363785867,1748871042610,-420.0,0.00019315,2]
[363785868,1748871042620,-420.0,0.00019315,2]
[363785870,1748871042633,-420.0,0.00019315,2]
[363785872,1748871042645,-521.47,0.00019315,2]
[363785874,1748871042655,-420.0,0.00019315,2]
[363785876,1748871042666,-715.95,0.00019315,2]
[363785878,1748871042678,-420.0,0.00019315,2]
[363785880,1748871042688,-420.0,0.00019315,2]
[363785882,1748871042698,-420.0,0.00019315,2]
[363785885,1748871042708,-422.23,0.00019315,2]
[363785887,1748871042719,-723.85,0.00019315,2]
[363785889,1748871042735,-420.0,0.00019315,2]
[363785891,1748871042745,-900.48,0.00019315,2]
[363785893,1748871042755,-2332.34,0.00019315,2]
[363785895,1748871042765,-458.14,0.00019315,2]
[363785897,1748871042775,-420.0,0.00019315,2]
[363785899,1748871042785,-420.0,0.00019315,2]
[363785902,1748871042796,-420.0,0.00019315,2]
[363785904,1748871042806,-1219.96,0.00019315,2]
[363785906,1748871042815,-644.02,0.00019315,2]
[363785908,1748871042825,-420.0,0.00019315,2]
[363785909,1748871042835,-519.66,0.00019315,2]
[363785912,1748871042846,-420.0,0.00019315,2]
[363785915,1748871042856,-420.0,0.00019315,2]
[363785919,1748871042867,-420.0,0.00019315,2]
[363785922,1748871042876,-420.0,0.00019315,2]
[363785926,1748871042886,-432.64,0.00019315,2]
[363785929,1748871042897,-420.0,0.00019315,2]
[363785933,1748871042907,-420.0,0.00019315,2]
[363785938,1748871042917,-420.0,0.00019315,2]
[363785943,1748871042928,-489.24,0.00019315,2]
[363785947,1748871042937,-420.0,0.00019315,2]
[363785949,1748871042947,-420.0,0.00019315,2]
[363785952,1748871042957,-724.17,0.00019315,2]
[363785955,1748871042966,-1212.12,0.00019315,2]
[363785959,1748871042977,-420.0,0.00019315,2]
[363785961,1748871042987,-544.66,0.00019315,2]
[363785965,1748871042997,-420.0,0.00019315,2]
[363785967,1748871043006,-420.0,0.00019315,2]
[363785970,1748871043016,-420.0,0.00019315,2]
[363785973,1748871043025,-378.09,0.00019315,2]
[363785976,1748871043035,-1602.74,0.00019315,2]
[363785979,1748871043045,-420.0,0.00019315,2]
[363785982,1748871043056,-242.04773257,0.00019315,2]
[363785985,1748871043067,-420.0,0.00019315,2]
[363785988,1748871043077,-420.0,0.00019315,2]
[363785991,1748871043087,-420.0,0.00019315,2]
[363785994,1748871043097,-420.0,0.00019315,2]
[363785997,1748871043108,-1619.58,0.00019315,2]
[363786000,1748871043119,-420.0,0.00019315,2]
[363786002,1748871043130,-2435.97,0.00019315,2]
[363786004,1748871043140,-420.0,0.00019315,2]
[363786006,1748871043151,-420.0,0.00019315,2]
[363786008,1748871043162,-420.0,0.00019315,2]
[363786010,1748871043173,-420.0,0.00019315,2]
[363786011,1748871043184,-911.97,0.00019315,2]
[363786013,1748871043196,-420.0,0.00019315,2]
[363786015,1748871043207,-846.68,0.00019315,2]
[363786017,1748871043218,-420.18,0.00019315,2]
[363786019,1748871043234,-420.0,0.00019315,2]
[363786021,1748871043244,-1213.53,0.00019315,2]
[363786023,1748871043255,-913.98,0.00019315,2]
[363786025,1748871043266,-491.82,0.00019315,2]
[363786027,1748871043282,-420.0,0.00019315,2]
[363786029,1748871043293,-420.0,0.00019315,2]
[363786031,1748871043304,-420.0,0.00019315,2]
[363786033,1748871043314,-420.0,0.00019315,2]
[363786035,1748871043325,-550.21123168,0.00019315,2]
[363786037,1748871043335,-963.21,0.00019315,2]
[363786039,1748871043345,-420.0,0.00019315,2]
[363786041,1748871043356,-420.0,0.00019315,2]
[363786043,1748871043366,-420.0,0.00019315,2]
[363786045,1748871043376,-377.73496029,0.00019315,2]
[363786047,1748871043387,-420.0,0.00019315,2]
[363786049,1748871043397,-420.0,0.00019315,2]
[363786052,1748871043410,-2129.45,0.00019315,2]
[363786054,1748871043420,-420.0,0.00019315,2]
[363786056,1748871043431,-420.0,0.00019315,2]
[363786059,1748871043441,-580.43,0.00019315,2]
[363786062,1748871043451,-420.0,0.00019315,2]
[363786065,1748871043461,-875.71,0.00019315,2]
[363786069,1748871043471,-6209.68,0.00019315,2]
[363786071,1748871043487,-420.0,0.00019315,2]
[363786073,1748871043497,-455.49,0.00019315,2]
[363786075,1748871043507,-363.8,0.00019315,2]
[363786077,1748871043517,-192.53480049,0.00019315,2]
[363786079,1748871043527,-420.0,0.00019315,2]
[363786081,1748871043537,-420.0,0.00019315,2]
[363786083,1748871043547,-420.0,0.00019315,2]
[363786085,1748871043556,-420.0,0.00019315,2]
[363786087,1748871043567,-481.16,0.00019315,2]
[363786089,1748871043577,-420.0,0.00019315,2]
[363786091,1748871043587,-420.0,0.00019315,2]
[363786093,1748871043596,-420.0,0.00019315,2]
[363786095,1748871043606,-420.0,0.00019315,2]
[363786097,1748871043616,-648.26,0.00019315,2]
[363786099,1748871043626,-420.0,0.00019315,2]
[363786100,1748871043639,-1282.71,0.00019315,2]
[363786102,1748871043649,-420.0,0.00019315,2]
[363786104,1748871043659,-420.0,0.00019315,2]
[363786106,1748871043668,-424.08,0.00019315,2]
[363786108,1748871043679,-420.0,0.00019315,2]
[363786110,1748871043688,-420.0,0.00019315,2]
[363786112,1748871043698,-420.0,0.00019315,2]
[363786114,1748871043708,-420.0,0.00019315,2]
[363786116,1748871043720,-518.15,0.00019315,2]
[363786118,1748871043733,-760.3,0.00019315,2]
[363786120,1748871043743,-667.760587,0.00019315,2]
[363786122,1748871043753,-420.0,0.00019315,2]
[363786124,1748871043763,-420.0,0.00019315,2]
[363786126,1748871043773,-1014.51,0.00019315,2]
[363786127,1748871043783,-505.66,0.00019315,2]
[363786129,1748871043794,-420.0,0.00019315,2]
[363786131,1748871043805,-1132.83,0.00019315,2]
[363786133,1748871043815,-420.0,0.00019315,2]
[363786135,1748871043824,-420.0,0.00019315,2]
[363786137,1748871043835,-420.0,0.00019315,2]
[363786139,1748871043845,-420.0,0.00019315,2]
[363786141,1748871043855,-771.4,0.00019315,2]
[363786143,1748871043864,-1050.61,0.00019315,2]
[363786164,1748871044035,-420.0,0.00019315,2]
[363786166,1748871044076,-420.0,0.00019315,2]
[363786168,1748871044086,-420.0,0.00019315,2]
[363786170,1748871044096,-293.43122587,0.00019315,2]
[363786172,1748871044107,-481.13160531,0.00019315,2]
[363786174,1748871044117,-10970.24,0.00019315,2]
[363786176,1748871044127,-528.6,0.00019315,2]
[363786177,1748871044137,-681.45,0.00019315,2]
[363786178,1748871044147,-909.66,0.00019315,2]
[363786179,1748871044156,-420.0,0.00019315,2]
[363786180,1748871044166,-420.0,0.00019315,2]
[363786181,1748871044176,-3031.74,0.00019315,2]
[363786182,1748871044186,-1032.47,0.00019315,2]
[363786183,1748871044196,-420.0,0.00019315,2]
[363786184,1748871044206,-420.0,0.00019315,2]
[363786185,1748871044216,-420.0,0.00019315,2]
[363786186,1748871044226,-2338.18,0.00019315,2]
[363786187,1748871044238,-492.47,0.00019315,2]
[363786188,1748871044248,-684.75,0.00019315,2]
[363786190,1748871044258,-3213.82,0.00019315,2]
[363786192,1748871044269,-420.0,0.00019315,2]
[363786194,1748871044279,-420.0,0.00019315,2]
[363786196,1748871044289,-420.0,0.00019315,2]
[363786198,1748871044298,-420.0,0.00019315,2]
[363786200,1748871044308,-420.0,0.00019315,2]
[363786202,1748871044318,-1249.54624496,0.00019352,2]
[363786204,1748871044328,-200.0,0.000194,7]
[363786206,1748871044338,-1249.54624496,0.00019413,2]
[363786208,1748871044348,-500.0,0.00019451,2]
[363786210,1748871044358,-500.0,0.00019451,2]
[363786212,1748871044367,-215.67212261,0.00019451,2]
[363786214,1748871044378,-500.0,0.00019451,2]
[363786216,1748871044388,-500.0,0.00019451,2]
[363786218,1748871044398,-500.0,0.00019451,2]
[363786220,1748871044408,-159.62100447,0.00019451,2]
[363786222,1748871044418,-500.0,0.00019451,2]
[363786224,1748871044427,-500.0,0.00019451,2]
[363786226,1748871044437,-250.13914095,0.00019451,2]
[363786228,1748871044446,-500.0,0.00019451,2]
[363786230,1748871044456,-500.0,0.00019451,2]
[363786232,1748871044466,-500.0,0.00019451,2]
[363786234,1748871044475,-500.0,0.00019451,2]
[363786235,1748871044489,-500.0,0.00019451,2]
[363786237,1748871044499,-429.03049258,0.00019451,2]
[363786239,1748871044509,-500.0,0.00019451,2]
[363786242,1748871044519,-500.0,0.00019451,2]
[363786243,1748871044529,-500.0,0.00019451,2]
[363786245,1748871044538,-500.0,0.00019451,2]
[363786248,1748871044549,-500.0,0.00019451,2]
[363786249,1748871044559,-500.0,0.00019451,2]
[363786251,1748871044569,-500.0,0.00019451,2]
[363786253,1748871044579,-267.20277165,0.00019451,2]
[363786256,1748871044590,-500.0,0.00019451,2]
[363786258,1748871044599,-500.0,0.00019451,2]
[363786259,1748871044609,-500.0,0.00019451,2]
[363786261,1748871044619,-500.0,0.00019451,2]
[363786263,1748871044630,-500.0,0.00019451,2]
[363786265,1748871044643,-500.0,0.00019451,2]
[363786268,1748871044653,-500.0,0.00019451,2]
[363786269,1748871044664,-500.0,0.00019451,2]
[363786272,1748871044674,-500.0,0.00019451,2]
[363786274,1748871044686,-500.0,0.00019451,2]
[363786276,1748871044695,-500.0,0.00019451,2]
[363786278,1748871044706,-500.0,0.00019451,2]
[363786280,1748871044719,-500.0,0.00019451,2]
[363786282,1748871044732,-500.0,0.00019451,2]
[363786284,1748871044742,-500.0,0.00019451,2]
[363786286,1748871044752,-500.0,0.00019451,2]
[363786288,1748871044762,-500.0,0.00019451,2]
[363786290,1748871044772,-500.0,0.00019451,2]
[363786292,1748871044782,-500.0,0.00019451,2]
[363786294,1748871044792,-500.0,0.00019451,2]
[363786296,1748871044802,-500.0,0.00019451,2]
[363786298,1748871044812,-219.0510649,0.00019451,2]
[363786300,1748871044821,-200.0,0.00019451,2]
[363786302,1748871044832,-500.0,0.00019451,2]
[363786304,1748871044842,-500.0,0.00019451,2]
[363786306,1748871044852,-500.0,0.00019451,2]
[363786308,1748871044863,-500.0,0.00019451,2]
[363786310,1748871044873,-500.0,0.00019451,2]
[363786312,1748871044883,-500.0,0.00019451,2]
[363786314,1748871044893,-500.0,0.00019451,2]
[363786316,1748871044904,-500.0,0.00019451,2]
[363786318,1748871044914,-1559.149076,0.00019452,2]
[363786320,1748871044924,-1454.819087,0.00019452,2]
[363786322,1748871044935,-667.760587,0.00019452,2]
[363786324,1748871044945,-420.0,0.00019452,2]
[363786326,1748871044955,-420.0,0.00019452,2]
[363786328,1748871044965,-420.0,0.00019452,2]
[363786330,1748871044974,-713.464001,0.00019452,2]
[363786332,1748871044987,-420.0,0.00019452,2]
[363786334,1748871044997,-420.0,0.00019452,2]
[363786336,1748871045006,-353.3649044,0.00019452,2]
[363786338,1748871045016,-420.0,0.00019452,2]
[363786340,1748871045025,-420.0,0.00019452,2]
[363786342,1748871045035,-420.0,0.00019452,2]
[363786344,1748871045045,-420.0,0.00019452,2]
[363786346,1748871045055,-420.0,0.00019452,2]
[363786348,1748871045064,-420.0,0.00019452,2]
[363786350,1748871045074,-470.26563294,0.00019452,2]
[363786352,1748871045083,-312.67333133,0.00019452,2]
[363786354,1748871045092,-420.0,0.00019452,2]
[363786356,1748871045102,-420.0,0.00019452,2]
[363786358,1748871045112,-420.0,0.00019452,2]
[363786359,1748871045122,-521.47,0.00019452,2]
[363786362,1748871045132,-420.0,0.00019452,2]
[363786364,1748871045142,-715.95,0.00019452,2]
[363786366,1748871045152,-420.0,0.00019452,2]
[363786368,1748871045162,-420.0,0.00019452,2]
[363786369,1748871045172,-420.0,0.00019452,2]
[363786371,1748871045182,-422.23,0.00019452,2]
[363786373,1748871045192,-723.85,0.00019452,2]
[363786375,1748871045201,-420.0,0.00019452,2]
[363786377,1748871045211,-900.48,0.00019452,2]
[363786379,1748871045221,-2332.34,0.00019452,2]
[363786381,1748871045231,-458.14,0.00019452,2]
[363786383,1748871045241,-420.0,0.00019452,2]
[363786385,1748871045251,-420.0,0.00019452,2]
[363786387,1748871045261,-420.0,0.00019452,2]
[363786390,1748871045272,-1219.96,0.00019452,2]
[363786392,1748871045282,-644.02,0.00019452,2]
[363786394,1748871045292,-420.0,0.00019452,2]
[363786396,1748871045302,-519.66,0.00019452,2]
[363786398,1748871045312,-200.24801677,0.00019452,2]
[363786399,1748871045322,-420.0,0.00019452,2]
[363786401,1748871045331,-420.0,0.00019452,2]
[363786404,1748871045341,-419.78759167,0.00019452,2]
[363786405,1748871045351,-432.64,0.00019452,2]
[363786408,1748871045361,-420.0,0.00019452,2]
[363786410,1748871045371,-420.0,0.00019452,2]
[363786412,1748871045381,-256.56,0.00019452,2]
[363786414,1748871045391,-489.24,0.00019452,2]
[363786416,1748871045402,-420.0,0.00019452,2]
[363786418,1748871045411,-276.43,0.00019452,2]
[363786420,1748871045421,-724.17,0.00019452,2]
[363786422,1748871045431,-1212.12,0.00019452,2]
[363786424,1748871045440,-420.0,0.00019452,2]
[363786426,1748871045449,-544.66,0.00019452,2]
[363786428,1748871045459,-420.0,0.00019452,2]
[363786430,1748871045469,-324.52235754,0.00019452,2]
[363786432,1748871045481,-420.0,0.00019452,2]
[363786434,1748871045490,-1602.74,0.00019452,2]
[363786436,1748871045500,-420.0,0.00019452,2]
[363786438,1748871045510,-420.0,0.00019452,2]
[363786440,1748871045520,-420.0,0.00019452,2]
[363786442,1748871045530,-420.0,0.00019452,2]
[363786444,1748871045540,-420.0,0.00019452,2]
[363786446,1748871045550,-1619.58,0.00019452,2]
[363786448,1748871045560,-420.0,0.00019452,2]
[363786449,1748871045571,-2435.97,0.00019452,2]
[363786450,1748871045581,-420.0,0.00019452,2]
[363786451,1748871045592,-420.0,0.00019452,2]
[363786452,1748871045602,-420.0,0.00019452,2]
[363786453,1748871045611,-420.0,0.00019452,2]
[363786454,1748871045621,-911.97,0.00019452,2]
[363786455,1748871045634,-420.0,0.00019452,2]
[363786456,1748871045645,-846.68,0.00019452,2]
[363786457,1748871045654,-420.18,0.00019452,2]
[363786459,1748871045664,-420.0,0.00019452,2]
[363786460,1748871045675,-1213.53,0.00019452,2]
[363786462,1748871045685,-913.98,0.00019452,2]
[363786464,1748871045695,-420.0,0.00019452,2]
[363786466,1748871045704,-420.0,0.00019452,2]
[363786468,1748871045715,-420.0,0.00019452,2]
[363786470,1748871045725,-183.82,0.00019452,2]
[363786472,1748871045736,-963.21,0.00019452,2]
[363786474,1748871045747,-420.0,0.00019452,2]
[363786476,1748871045757,-420.0,0.00019452,2]
[363786478,1748871045768,-359.47891705,0.00019452,2]
[363786480,1748871045778,-420.0,0.00019452,2]
[363786482,1748871045788,-420.0,0.00019452,2]
[363786484,1748871045798,-2129.45,0.00019452,2]
[363786486,1748871045808,-420.0,0.00019452,2]
[363786488,1748871045818,-420.0,0.00019452,2]
[363786490,1748871045828,-580.43,0.00019452,2]
[363786492,1748871045838,-420.0,0.00019452,2]
[363786494,1748871045849,-875.71,0.00019452,2]
[363786496,1748871045859,-6209.68,0.00019452,2]
[363786498,1748871045869,-420.0,0.00019452,2]
[363786499,1748871045879,-455.49,0.00019452,2]
[363786501,1748871045889,-420.0,0.00019452,2]
[363786503,1748871045899,-420.0,0.00019452,2]
[363786505,1748871045909,-420.0,0.00019452,2]
[363786508,1748871045920,-420.0,0.00019452,2]
[363786509,1748871045930,-481.16,0.00019452,2]
[363786510,1748871045940,-420.0,0.00019452,2]
[363786511,1748871045950,-420.0,0.00019452,2]
[363786512,1748871045960,-420.0,0.00019452,2]
[363786513,1748871045970,-420.0,0.00019452,2]
[363786514,1748871045982,-648.26,0.00019452,2]
[363786515,1748871045991,-420.0,0.00019452,2]
[363786516,1748871046001,-1282.71,0.00019452,2]
[363786517,1748871046011,-420.0,0.00019452,2]
[363786519,1748871046021,-420.0,0.00019452,2]
[363786521,1748871046031,-424.08,0.00019452,2]
[363786523,1748871046041,-420.0,0.00019452,2]
[363786525,1748871046050,-420.0,0.00019452,2]
[363786527,1748871046060,-420.0,0.00019452,2]
[363786529,1748871046070,-518.15,0.00019452,2]
[363786531,1748871046080,-420.0,0.00019452,2]
[363786533,1748871046089,-760.3,0.00019452,2]
[363786535,1748871046099,-667.760587,0.00019452,2]
[363786537,1748871046109,-420.0,0.00019452,2]
[363786539,1748871046119,-420.0,0.00019452,2]
[363786541,1748871046128,-1014.51,0.00019452,2]
[363786543,1748871046138,-505.66,0.00019452,2]
[363786545,1748871046148,-420.0,0.00019452,2]
[363786547,1748871046158,-1132.83,0.00019452,2]
[363786549,1748871046167,-420.0,0.00019452,2]
[363786551,1748871046177,-420.0,0.00019452,2]
[363786553,1748871046186,-420.0,0.00019452,2]
[363786555,1748871046196,-420.0,0.00019452,2]
[363786557,1748871046206,-771.4,0.00019452,2]
[363786559,1748871046215,-1050.61,0.00019452,2]
[363786560,1748871046225,-420.0,0.00019452,2]
[363786561,1748871046237,-420.0,0.00019452,2]
[363786562,1748871046247,-461.91,0.00019452,2]
[363786563,1748871046258,-10970.24,0.00019452,2]
[363786564,1748871046268,-528.6,0.00019452,2]
[363786566,1748871046278,-681.45,0.00019452,2]
[363786568,1748871046288,-909.66,0.00019452,2]
[363786569,1748871046297,-420.0,0.00019452,2]
[363786571,1748871046308,-420.0,0.00019452,2]
[363786574,1748871046318,-3031.74,0.00019452,2]
[363786575,1748871046328,-1032.47,0.00019452,2]
[363786577,1748871046339,-420.0,0.00019452,2]
[363786579,1748871046349,-420.0,0.00019452,2]
[363786580,1748871046359,-420.0,0.00019452,2]
[363786581,1748871046369,-2338.18,0.00019452,2]
[363786582,1748871046379,-492.47,0.00019452,2]
[363786583,1748871046390,-684.75,0.00019452,2]
[363786584,1748871046400,-3213.82,0.00019452,2]
[363786585,1748871046410,-450.65469991,0.00019452,2]
[363786586,1748871046420,-420.0,0.00019452,2]
[363786587,1748871046430,-420.0,0.00019452,2]
[363786588,1748871046440,-420.0,0.00019452,2]
[363786589,1748871046450,-420.0,0.00019452,2]
[363786590,1748871046459,-1249.54624496,0.00019474,2]
[363786591,1748871046471,-176.68043829,0.00019489,2]
[363786592,1748871046481,-500.0,0.000195,7]
[363786593,1748871046491,-1249.54624496,0.00019535,2]
[363786594,1748871046501,-500.0,0.00019588,2]
[363786599,1748871046511,-420.0,0.00019589,2]
[363786600,1748871046572,-420.0,0.00019589,2]
[363786601,1748871046582,-420.0,0.00019589,2]
[363786604,1748871046591,-420.0,0.00019589,2]
[363786605,1748871046600,-420.0,0.00019589,2]
[363786606,1748871046610,-420.0,0.00019589,2]
[363786607,1748871046619,-420.0,0.00019589,2]
[363786608,1748871046629,-369.82571886,0.00019589,2]
[363786609,1748871046643,-533.51706122,0.00019589,2]
[363786610,1748871046652,-420.0,0.00019589,2]
[363786611,1748871046662,-420.0,0.00019589,2]
[363786612,1748871046671,-420.0,0.00019589,2]
[363786613,1748871046681,-420.0,0.00019589,2]
[363786614,1748871046690,-420.0,0.00019589,2]
[363786615,1748871046702,-521.47,0.00019589,2]
[363786616,1748871046712,-420.0,0.00019589,2]
[363786617,1748871046722,-715.95,0.00019589,2]
[363786618,1748871046732,-420.0,0.00019589,2]
[363786619,1748871046741,-420.0,0.00019589,2]
[363786620,1748871046751,-422.23,0.00019589,2]
[363786621,1748871046761,-723.85,0.00019589,2]
[363786622,1748871046770,-233.06,0.00019589,2]
[363786623,1748871046780,-900.48,0.00019589,2]
[363786624,1748871046789,-2332.34,0.00019589,2]
[363786625,1748871046799,-458.14,0.00019589,2]
[363786626,1748871046808,-420.0,0.00019589,2]
[363786627,1748871046818,-420.0,0.00019589,2]
[363786628,1748871046827,-420.0,0.00019589,2]
[363786629,1748871046837,-1219.96,0.00019589,2]
[363786630,1748871046847,-644.02,0.00019589,2]
[363786631,1748871046856,-420.0,0.00019589,2]
[363786632,1748871046866,-519.66,0.00019589,2]
[363786633,1748871046876,-420.0,0.00019589,2]
[363786634,1748871046886,-346.0632537,0.00019589,2]
[363786635,1748871046896,-432.64,0.00019589,2]
[363786636,1748871046906,-420.0,0.00019589,2]
[363786637,1748871046915,-489.24,0.00019589,2]
[363786638,1748871046925,-420.0,0.00019589,2]
[363786639,1748871046934,-724.17,0.00019589,2]
[363786640,1748871046944,-1212.12,0.00019589,2]
[363786641,1748871046953,-180.94071161,0.00019589,2]
[363786642,1748871046963,-544.66,0.00019589,2]
[363786643,1748871046973,-420.0,0.00019589,2]
[363786644,1748871046984,-420.0,0.00019589,2]
[363786645,1748871046993,-1602.74,0.00019589,2]
[363786646,1748871047002,-420.0,0.00019589,2]
[363786647,1748871047011,-420.0,0.00019589,2]
[363786648,1748871047021,-420.0,0.00019589,2]
[363786649,1748871047031,-420.0,0.00019589,2]
[363786650,1748871047040,-420.0,0.00019589,2]
[363786651,1748871047049,-1619.58,0.00019589,2]
[363786652,1748871047058,-420.0,0.00019589,2]
[363786653,1748871047067,-2435.97,0.00019589,2]
[363786654,1748871047076,-420.0,0.00019589,2]
[363786655,1748871047085,-507.78,0.00019589,2]
[363786656,1748871047095,-374.66552074,0.00019589,2]
[363786657,1748871047104,-420.0,0.00019589,2]
[363786658,1748871047113,-911.97,0.00019589,2]
[363786659,1748871047122,-466.92141665,0.00019589,2]
[363786660,1748871047131,-846.68,0.00019589,2]
[363786661,1748871047141,-420.18,0.00019589,2]
[363786662,1748871047150,-420.0,0.00019589,2]
[363786663,1748871047159,-1213.53,0.00019589,2]
[363786664,1748871047168,-913.98,0.00019589,2]